[Event "Oceania Zonal Open 2023"]
[Site "Melbourne"]
[Date "2023.01.23"]
[Round "1.12"]
[White "Herlihy, Brian"]
[Black "Jordan, William"]
[Result "0-1"]
[ECO "D35"]
[WhiteElo "1629"]
[BlackElo "2181"]
[Annotator "TA"]
[PlyCount "152"]
[EventDate "2023.01.09"]
[EventType "swiss"]
[EventCountry "AUS"]
[SourceTitle "playchess.com"]
[Source "ChessBase"]
[SourceQuality "1"]
[TimeControl "5400+30"]

{[%evp 14,152,36,23,37,0,12,0,54,56,47,50,65,64,77,84,77,76,75,-3,0,-12,0,0,0,0,0,0,0,0,0,0,0,0,10,0,12,0,19,7,16,0,0,0,0,0,0,-8,-5,-8,-14,-4,0,0,0,-23,-29,-83,-79,-104,-110,-110,-116,-125,-90,-95,-38,-98,-99,-223,-215,-275,-254,-281,-244,-280,-265,-282,-250,-324,-311,-302,-213,-323,-332,-353,-357,-349,-346,-369,-259,-237,0,-360,-352,-415,-295,-481,-213,-440,-433,-431,-311,-294,-285,-247,-261,-279,-62,-302,-312,-427,-423,-416,-401,-462,-377,-524,-474,-519,-513,-827,-752,-1130,-1059,-1285,-1124,-1053,-1153,-1927,-1562,-29977,-29980,-29980,-29980,-29974,-29975,-29974,-29975,-29967,-5114]} 1. d4 {[%emt 0:00:05]} Nf6 {[%emt 0:00:09]} 2. c4 {[%emt 0:00:09]} e6 {[%emt 0:01:13]} 3. Nc3 {[%emt 0:00:21]} d5 {[%emt 0:00:25]} 4. cxd5 {[%emt 0:00:39]} exd5 {[%emt 0:00:11]} 5. Bg5 {[%emt 0:00:23]} c6 {[%emt 0:00:28]} 6. e3 {[%emt 0:00:22]} Nbd7 {[%emt 0:01:42]} 7. Bd3 {[%emt 0:01:32]} Bd6 {[%emt 0:00:57]} 8. Nge2 {[%emt 0:03:33]} Nf8 {[%emt 0:02:50] D35: Queen's Gambit Declined: Exchange Variation.} 9. h3 {[%emt 0:03:26]} Ng6 {[%emt 0:00:34] [#]} 10. O-O $146 {[%emt 0:02:30]} ({Predecessor:} 10. Qc2 h6 11. Bxf6 Qxf6 12. e4 dxe4 13. Nxe4 Bb4+ 14. N2c3 Qxd4 15. O-O-O O-O 16. a3 Bxc3 17. Nxc3 {0-1 Bluebaum,M (2647)-Le,T (2501) Titled Tuesday intern op 11th Aug blitz 2020 (8)}) 10... h6 {[%emt 0:03:03]} (10... O-O $11) 11. Bxf6 $1 $14 {[%emt 0:07:22]} Qxf6 {[%emt 0:00:41]} 12. e4 $1 {[%emt 0:00:14]} dxe4 {[%emt 0:11:58]} 13. Nxe4 {[%emt 0:01:08]} Qe7 {[%emt 0:00:06]} 14. Nxd6+ {[%emt 0:06:10]} Qxd6 {[%emt 0:00:02] [#]} 15. Bxg6 $1 {[%emt 0:00:15]} fxg6 {[%emt 0:02:33]} 16. Ng3 {[%emt 0:05:12]} ({Better is} 16. Qb3 $16) 16... O-O $11 {[%emt 0:00:55] Active counter play!} 17. Qd3 {[%emt 0:12:38]} Kh7 {[%emt 0:08:12]} 18. Rad1 {[%emt 0:02:33]} Be6 {[%emt 0:01:04]} 19. b3 {[%emt 0:03:28]} Rad8 {[%emt 0:04:27]} 20. Ne4 {[%emt 0:04:03]} Qc7 {[%emt 0:06:02]} 21. Qc3 {[%emt 0:02:34]} Rf5 {[%emt 0:03:12]} 22. Rfe1 {[%emt 0:06:24]} Bd5 {[%emt 0:02:01]} 23. Ng3 {[%emt 0:03:25]} Rf4 {[%emt 0:02:41]} 24. Re5 {[%emt 0:01:47]} Qf7 {[%emt 0:01:49]} 25. Qe3 {[%emt 0:01:31]} Rf8 {[%emt 0:11:44][%cal Rf4f2]} 26. Rd2 {[%emt 0:03:12]} Qf6 {[%emt 0:01:53]} (26... Qc7 {simplifies} 27. f3 R4f7 28. Ne4 Bxe4 29. Qxe4 Rf5) 27. Re2 {[%emt 0:03:36]} Qh4 {[%emt 0:03:56]} 28. Rd2 {[%emt 0:03:27]} a5 {[%emt 0:01:13]} 29. Re7 {[%emt 0:02:12]} b6 {[%emt 0:04:32]} 30. Qe5 {[%emt 0:03:14][%csl Ge7][%cal Re5g7]} R4f7 {[%emt 0:01:15] The board is on fire.} 31. Re2 {[%emt 0:01:42]} Rxe7 $40 {[%emt 0:03:24][%mdl 128] White needs to defend precisely.} (31... b5 {is more complex.} 32. Rxf7 Rxf7 33. Ne4 Rf5) 32. Qxe7 {[%emt 0:00:09]} Qxe7 {[%emt 0:01:33]} (32... Qxd4 $2 33. Qxf8 Qf6 34. Qb8 $18) (32... Qf4 {keeps more tension.} 33. Qe3 Qf6 34. Qd2 Rd8) 33. Rxe7 {[%emt 0:00:07][%mdl 4096] Endgame KRB-KRN} Rf7 {[%emt 0:03:41]} 34. Re8 {[%emt 0:00:38]} Ra7 {[%emt 0:02:19]} 35. Re2 {[%emt 0:03:10]} (35. Ne2 $11) 35... a4 $17 {[%emt 0:03:46]} 36. Rb2 {[%emt 0:00:29]} axb3 {[%emt 0:02:54]} 37. axb3 {[%emt 0:00:07]} Ra3 {[%emt 0:00:13]} 38. b4 {[%emt 0:00:46]} Bc4 {[%emt 0:00:41]} 39. Ne4 {[%emt 0:03:51]} Rd3 {[%emt 0:00:54]} (39... b5 $17) 40. Nd2 {[%emt 0:01:27]} (40. Rd2 $15) 40... Rxd4 {[%emt 0:02:00]} 41. Nxc4 {[%emt 0:00:10]} (41. f3 $17 {was worth a try.}) 41... Rxc4 {[%emt 0:00:02] KR-KR} 42. g3 {[%emt 0:00:21] [#]} g5 $1 {[%emt 0:00:09]} 43. Kf1 {[%emt 0:00:19]} Kg6 {[%emt 0:00:42]} 44. Ke2 {[%emt 0:00:17]} Kf5 {[%emt 0:00:36]} 45. Ke3 {[%emt 0:01:58]} Ke5 {[%emt 0:00:51]} 46. Kd3 {[%emt 0:01:26]} b5 {[%emt 0:01:05]} 47. Re2+ {[%emt 0:00:50]} Kf5 {[%emt 0:00:28][%cal Of5f6]} 48. Rb2 {[%emt 0:00:27]} (48. Re7 {might work better.}) 48... h5 $19 {[%emt 0:00:20][%cal Bh6h5,Bh5h4][%mdl 32]} 49. Ke3 {[%emt 0:03:58]} Ke5 {[%emt 0:01:00]} 50. Rb3 {[%emt 0:01:12]} h4 {[%emt 0:00:37]} 51. Kd3 {[%emt 0:01:41]} Rc1 {[%emt 0:01:34]} ({Don't blunder} 51... g4 $2 52. hxg4 hxg3 53. fxg3 $19) 52. Kd2 {[%emt 0:00:41]} Rc4 {[%emt 0:00:24]} (52... Rh1 $142 53. gxh4 gxh4) 53. Kd3 $1 {[%emt 0:00:10]} Kd5 {[%emt 0:00:39]} ({Avoid the trap} 53... g4 $2 54. hxg4 hxg3 55. fxg3 $19) 54. Rb2 {[%emt 0:01:24]} Rc1 {[%emt 0:00:56] Threatens to win with ...hxg3.} 55. Kd2 $2 {[%emt 0:01:27]} (55. Rd2 {was called for.}) 55... Rg1 {[%emt 0:01:51]} (55... hxg3 $142 56. fxg3 (56. Kxc1 $2 {loses.} g2 $19) 56... Rg1) 56. gxh4 $2 {[%emt 0:00:46]} (56. g4) 56... gxh4 {[%emt 0:00:07]} 57. Rb3 {[%emt 0:01:05]} Rg6 {[%emt 0:01:12]} 58. Rc3 {[%emt 0:00:16]} Rf6 {[%emt 0:00:38]} 59. Ke3 {[%emt 0:00:19]} Re6+ {[%emt 0:00:39]} 60. Kd3 {[%emt 0:00:16]} Re5 $2 {[%emt 0:01:35]} (60... Kd6 $19 {Hoping for ...Re1.} 61. Rc5 Re5) 61. Rc5+ $2 {[%emt 0:00:23]} (61. f4 $15 Re1 62. Rc5+ Kd6 63. Rh5) 61... Kd6 {[%emt 0:00:01]} 62. Rc3 {[%emt 0:00:16]} Re1 {[%emt 0:00:23]} 63. Rb3 {[%emt 0:00:16]} Kd5 {[%emt 0:00:24]} 64. Kd2 {[%emt 0:00:20]} Rf1 {[%emt 0:00:37]} 65. Ke2 {[%emt 0:01:26]} Kc4 {[%emt 0:00:14]} 66. Rf3 {[%emt 0:00:26]} Rb1 {[%emt 0:00:28]} 67. Rf4+ {[%emt 0:00:49]} (67. Kd2 $142 Rb2+ 68. Kc1 Rxb4 69. Rf4+ Kb3 70. Rf7) 67... Kc3 {[%emt 0:00:05]} 68. Rxh4 {[%emt 0:00:13]} Rxb4 {[%emt 0:00:11]} 69. Rh7 {[%emt 0:00:17]} Re4+ {[%emt 0:00:15]} 70. Kf3 {[%emt 0:00:57]} Re7 {[%emt 0:00:25] aiming for ...b4.} 71. h4 {[%emt 0:00:27]} b4 {[%emt 0:00:38]} 72. h5 {[%emt 0:00:06]} b3 {[%emt 0:01:02] Black mates.} 73. h6 {[%emt 0:00:07]} b2 {[%emt 0:00:21]} 74. Rxg7 {[%emt 0:00:30]} b1=Q {[%emt 0:01:52]} (74... b1=R $2 75. Rxe7 Rh1 76. h7 $18) 75. Rxe7 {[%emt 0:00:11]} Qf5+ {[%emt 0:00:06]} 76. Ke2 {[%emt 0:00:31]} Qh5+ {[%emt 0:00:08] Weighted Error Value: White=0.23 (precise) /Black=0.30} (76... Qb5+ $142 77. Ke1 Qb1+ 78. Ke2 Qd3+ 79. Ke1 Qd2+ 80. Kf1 Qxh6 81. Ra7 c5 82. Kg2 c4 83. Kg3 Qg5+ 84. Kh3 Qf5+ 85. Kg3 Qg5+ 86. Kf3 Qd5+ 87. Kg3 Kb2 88. Ra6 c3 89. Rb6+ Kc2 90. f4 Kd2 91. Rh6 c2 92. Rh2+ Kc3 93. Rxc2+ Kxc2 94. Kh4 Kd3 95. Kg3 Ke4 96. f5 Qxf5 97. Kg2 Kf4 98. Kh2 Qc2+ 99. Kg1 Kg3 100. Kh1 Qh2#) 0-1

[Event "Oceania Zonal Open 2023"]
[Site "Melbourne"]
[Date "2023.01.23"]
[Round "1.12"]
[White "Lim, Jongmin"]
[Black "Rujevic, Mirko"]
[Result "0-1"]
[ECO "C56"]
[WhiteElo "1615"]
[BlackElo "2141"]
[Annotator "TA"]
[PlyCount "68"]
[EventDate "2023.01.09"]
[EventType "swiss"]
[EventCountry "AUS"]
[SourceTitle "playchess.com"]
[Source "ChessBase"]
[SourceQuality "1"]
[TimeControl "5400+30"]

{[%evp 15,68,-10,0,-34,28,28,49,45,47,46,26,38,70,8,10,14,69,66,68,63,237,243,269,205,209,213,695,690,672,671,623,416,364,125,178,75,76,0,0,0,0,-417,-359,-377,-186,-177,-63,-178,-193,-517,-491,-1080,-805,-2451,-2323]} 1. e4 {[%emt 0:00:01]} e5 {[%emt 0:00:10]} 2. Nf3 {[%emt 0:00:06]} Nc6 {[%emt 0:00:07]} 3. d4 {[%emt 0:00:10]} exd4 {[%emt 0:01:36]} 4. Bc4 {[%emt 0:00:09]} Nf6 {[%emt 0:06:39]} 5. e5 {[%emt 0:00:09]} d5 {[%emt 0:00:23]} 6. Bb5 {[%emt 0:00:13]} Ne4 {[%emt 0:01:40]} 7. Nxd4 {[%emt 0:00:26]} Bd7 {[%emt 0:00:53]} 8. Bxc6 {[%emt 0:01:03]} bxc6 {[%emt 0:00:11]} 9. c3 {[%emt 0:00:52] [#] C56: Two Knights: 4 d4 exd4 5 0-0 Nxe4.} Qe7 $146 {[%emt 0:07:18]} (9... Bc5 $15) ({Predecessor:} 9... c5 10. Nc2 Bc6 11. O-O Be7 12. f3 Ng5 13. f4 Ne4 14. f5 Bg5 15. Nd2 Bxd2 16. Bxd2 Qe7 {0-1 Prasek,I (2061)-Kalisky,V (2132) SVK-chT2B 2122 2021 (5.2)}) 10. O-O $1 $11 {[%emt 0:02:47]} g6 {[%emt 0:01:51]} 11. Nd2 {[%emt 0:02:42] White is slightly better.} Nxd2 {[%emt 0:02:51]} 12. Bxd2 {[%emt 0:00:11]} Bg7 {[%emt 0:00:42]} 13. f4 {[%emt 0:03:20]} c5 {[%emt 0:03:51]} 14. Nf3 {[%emt 0:02:24]} ({White should try} 14. f5 $1 $14 Bxe5 15. Nf3) 14... O-O {[%emt 0:00:35]} 15. Be3 {[%emt 0:03:47]} Bc6 {[%emt 0:07:37] Black is weak on the dark squares} (15... c6 $11) 16. Qe2 $14 {[%emt 0:07:42]} Rfd8 {[%emt 0:12:19]} 17. Qf2 {[%emt 0:01:51]} Bf8 $2 {[%emt 0:00:17] [#]} (17... d4 $1 $14 18. cxd4 Rab8) 18. f5 $1 $18 {[%emt 0:04:17][%mdl 512] aiming for Bg5.} h6 {[%emt 0:03:46] Repels Bg5} (18... d4 19. Bg5) 19. fxg6 {[%emt 0:11:02]} ({Don't do} 19. f6 $6 Qe6 $18) 19... fxg6 {[%emt 0:01:00]} 20. Qg3 {[%emt 0:00:07]} Kh7 {[%emt 0:07:32] [#]} (20... Qg7 21. Nh4 g5) 21. Ng5+ $1 {[%emt 0:13:37][%mdl 512]} hxg5 {[%emt 0:00:34]} 22. Bxg5 {[%emt 0:00:17]} Qe8 {[%emt 0:00:12]} 23. Qh4+ {[%emt 0:03:22]} Kg8 {[%emt 0:00:11]} 24. Rf3 $2 {[%emt 0:05:29]} ({But not} 24. Bf6 Bg7 25. Bxg7 Kxg7 $18) (24. e6 $18 {White threatens Rf7 and mate.} Bg7 25. Bf6) 24... Rd7 $16 {[%emt 0:10:36]} 25. Rh3 {[%emt 0:01:25]} (25. Raf1 $1 $18 {is the precise move to win. Rh3 is the strong threat.} Qxe5 26. Bf6) 25... Qxe5 {[%emt 0:00:43] [#]} 26. Bf6 {[%emt 0:01:33] Inhibits Rf7.} (26. Rf1 $1 $16 {[%cal Rf1f6] Hoping for Rf6.} Qg7 27. Bf6) 26... Qh5 $1 $11 {[%emt 0:03:21] Strongly threatening ...Qxh4.} 27. Qf2 {[%emt 0:00:32]} Qf5 {[%emt 0:00:27] White must now prevent ...Qxf2+.} (27... Qg4 $2 28. Rh8+ Kf7 29. Rf1 $18) 28. Rh8+ $2 {[%emt 0:02:21][%mdl 8192]} (28. Qh4 $11 {and White is okay.} Qh5 29. Qe1) 28... Kf7 $19 {[%emt 0:00:54]} 29. Qh4 {[%emt 0:00:08] Rf1 would be deadly.} Qxf6 {[%emt 0:11:08]} (29... Bb5 $142 30. Re1 Qxf6 31. Qh7+ Qg7) 30. Rf1 {[%emt 0:00:56]} Qxf1+ {[%emt 0:00:19]} 31. Kxf1 {[%emt 0:00:05] [#]} Rd6 $1 {[%emt 0:01:00]} ({Inferior is} 31... Bd6 32. Qh7+ Kf6 33. Qh4+ Kf7 34. Rxa8 Bxa8 35. Qh7+ Ke6 36. Qh3+ Ke7 37. Qh7+ Ke8 38. Qg8+ Bf8 39. Qe6+ Kd8 40. Qf6+ Ke8 41. Qe6+ Kd8 42. Qf6+ Ke8 43. Qe6+ $11) 32. Qg4 $2 {[%emt 0:02:59]} (32. Kg1) 32... Re8 {[%emt 0:03:19] Threatens to win with ...Rf6+. Black is clearly winning.} 33. Rh3 {[%emt 0:01:08]} (33. Kg1 $142 Rf6 34. Qh4) 33... d4 {[%emt 0:00:46][%cal Bd5d4,Bd4d3][%mdl 32]} 34. Qg3 {[%emt 0:04:10]} d3 {[%emt 0:02:22] An exciting game.   Weighted Error Value: White=1.27/Black=0.62} 0-1

[Event "Oceania Zonal Open 2023"]
[Site "Melbourne"]
[Date "2023.01.24"]
[Round "2.1"]
[White "Beaumont, David"]
[Black "Kuybokarov, Temur"]
[Result "0-1"]
[ECO "D85"]
[WhiteElo "1850"]
[BlackElo "2558"]
[Annotator "TA"]
[PlyCount "46"]
[EventDate "2023.01.09"]
[EventType "swiss"]
[EventCountry "AUS"]
[SourceTitle "playchess.com"]
[Source "ChessBase"]
[SourceQuality "1"]
[TimeControl "5400+30"]

{[%evp 21,46,0,0,-18,-11,-33,-27,-53,-41,-115,-106,-202,-190,-449,-448,-440,-445,-656,-635,-783,-781,-756,-756,-754,-710,-991,-985]} 1. d4 {[%emt 0:00:02]} Nf6 {[%emt 0:00:30]} 2. c4 {[%emt 0:00:09]} g6 {[%emt 0:00:20]} 3. Nc3 {[%emt 0:00:08]} d5 {[%emt 0:00:26]} 4. cxd5 {[%emt 0:03:08]} Nxd5 {[%emt 0:00:09]} 5. e4 {[%emt 0:00:20]} Nxc3 {[%emt 0:00:19]} 6. bxc3 {[%emt 0:00:08]} Bg7 {[%emt 0:00:07]} 7. Be3 {[%emt 0:00:11]} c5 {[%emt 0:00:39]} 8. Rc1 {[%emt 0:00:09]} Qa5 {[%emt 0:01:40]} 9. Qd2 {[%emt 0:00:14]} O-O {[%emt 0:02:40]} 10. Nf3 {[%emt 0:03:03]} Bg4 {[%emt 0:01:22]} 11. Be2 {[%emt 0:03:44]} Nd7 {[%emt 0:05:40]} 12. h3 {[%emt 0:02:53] D85: Exchange Grünfeld: Unusual White 7th moves and lines with 7 Nf3.} Bxf3 {[%emt 0:00:32]} 13. Bxf3 {[%emt 0:01:02]} Nb6 {[%emt 0:12:17]} 14. Be2 {[%emt 0:27:42] [#] Inhibits Nc4. Black has an edge.} Rfd8 $146 {[%emt 0:05:43]} (14... Rac8 $5 {[%cal Rc5d4]} 15. O-O (15. dxc5 Na4 $15) 15... cxd4 16. cxd4 Qxd2 17. Bxd2 Bxd4 $15) ({Predecessor:} 14... e6 15. O-O Rfd8 16. Bg5 Rd7 17. d5 exd5 18. Bg4 Rc7 19. exd5 f5 20. Be2 Rd7 {1-0 Popov,O (1940)-Kurbanov,N (1679) Voronezh op-B 20th 2016 (9)}) 15. Rc2 {[%emt 0:04:37]} ({White should try} 15. d5 $15) 15... Qa4 $17 {[%emt 0:03:39][%cal Rc5d4]} 16. d5 {[%emt 0:16:54]} (16. O-O $17 {was necessary.}) 16... Qxe4 $19 {[%emt 0:00:33]} 17. c4 $2 {[%emt 0:09:31] [#]} (17. Bf3 {was called for.} Qc4 18. Be2 Qxd5 19. O-O) 17... Qxg2 {[%emt 0:01:32] Black is clearly winning.} 18. Rf1 {[%emt 0:00:06]} e6 {[%emt 0:02:12][%cal Be7e6,Be6d5,Bd5c4][%mdl 32]} (18... Qxh3 $2 {perishes.} 19. Bxc5 e6 20. Qe3 $19) 19. f4 {[%emt 0:09:24]} (19. d6 $142 Qc6 20. Qc1) 19... exd5 {[%emt 0:00:47]} 20. Rg1 {[%emt 0:03:29]} Qxh3 {[%emt 0:01:28] [#] aiming for ...dxc4.} 21. Bg4 {[%emt 0:03:30]} Qh4+ {[%emt 0:00:08]} 22. Kf1 {[%emt 0:00:04]} Nxc4 {[%emt 0:00:40]} 23. Rxc4 {[%emt 0:01:11]} dxc4 {[%emt 0:00:06] Black took control after the opening.   Weighted Error Value: White=1.18/Black=0.08 (flawless)} 0-1

[Event "Oceania Zonal Open 2023"]
[Site "Melbourne"]
[Date "2023.01.24"]
[Round "2.2"]
[White "Zhao, Zong-Yuan"]
[Black "Sikivou, Taione"]
[Result "1-0"]
[ECO "D02"]
[WhiteElo "2488"]
[BlackElo "1840"]
[Annotator "TA"]
[PlyCount "71"]
[EventDate "2023.01.09"]
[EventType "swiss"]
[EventCountry "AUS"]
[SourceTitle "playchess.com"]
[Source "ChessBase"]
[SourceQuality "1"]
[TimeControl "5400+30"]

{[%evp 10,71,5,0,-3,-3,0,0,1,0,0,-7,2,-3,78,64,89,86,108,104,156,144,156,150,164,143,249,253,242,203,275,266,275,269,283,282,267,267,272,284,319,325,317,308,356,249,226,187,382,395,395,382,387,401,394,384,443,456,536,525,602,599,997,985]} 1. d4 {[%emt 0:02:23]} d5 {[%emt 0:00:06]} 2. Nf3 {[%emt 0:00:04]} Nf6 {[%emt 0:00:06]} 3. Bf4 {[%emt 0:00:15]} e6 {[%emt 0:01:11]} 4. e3 {[%emt 0:00:32]} Bd6 {[%emt 0:00:15]} 5. Bg3 {[%emt 0:00:29]} O-O {[%emt 0:00:10]} 6. Nbd2 {[%emt 0:00:05]} c5 {[%emt 0:00:31] D02: 1 d4 d5 2 Nf3 sidelines, including 2...Nf6 3 g3 and 2...Nf6 3 Bf4.} 7. c3 {[%emt 0:00:04]} Qc7 {[%emt 0:00:37]} 8. dxc5 {[%emt 0:00:51]} Qxc5 {[%emt 0:00:08] The position is equal.} 9. Bd3 {[%emt 0:00:03]} Nbd7 {[%emt 0:02:11]} 10. Qe2 {[%emt 0:00:39]} Qb6 {[%emt 0:01:28]} 11. O-O-O {[%emt 0:04:59] [#]} e5 $146 {[%emt 0:04:16]} (11... Be7 $11 {keeps the balance.}) ({Predecessor:} 11... Nc5 12. e4 Be7 13. Bc2 Bd7 14. e5 Bb5 15. Qe3 Nfd7 16. Bh4 Bxh4 17. Nxh4 Nd3+ 18. Bxd3 Qxe3 19. fxe3 Bxd3 {0-1 Yurovskich,O (2260)-Riff,J (2504) EU-ch Online 2300+ Qual 2020 (8)}) 12. e4 $16 {[%emt 0:02:23]} Re8 {[%emt 0:18:51] [#]} 13. Rhe1 $1 {[%emt 0:21:37]} Nc5 {[%emt 0:03:56]} 14. exd5 {[%emt 0:01:42] Black must now prevent Nc4.} Bg4 {[%emt 0:04:10]} ({Better is} 14... Bf8) 15. Nc4 {[%emt 0:01:03]} (15. Bxe5 $2 Rxe5 16. Qf1 Nxd3+ 17. Qxd3 Rxd5 $19) 15... Qc7 {[%emt 0:00:30]} 16. Nxd6 {[%emt 0:01:20]} (16. Ncxe5 Ncd7 17. Nxd7 Rxe2 18. Nxf6+ gxf6 $16) 16... Qxd6 {[%emt 0:00:03]} 17. Bxe5 {[%emt 0:01:30]} Qb6 {[%emt 0:02:00]} (17... Nxd3+ $16 {was worth a try.} 18. Qxd3 (18. Rxd3 Qa6 $16) 18... Rxe5 19. Nxe5 (19. Rxe5 Bxf3 20. Rde1 Bxg2 $11) 19... Bxd1) 18. h3 $18 {[%emt 0:07:06]} Bh5 {[%emt 0:01:18]} 19. g4 {[%emt 0:03:48][%cal Bg2g4,Bg4g5][%mdl 32]} Bg6 {[%emt 0:00:05]} 20. Bxg6 {[%emt 0:00:12]} hxg6 {[%emt 0:00:06]} 21. Qc2 {[%emt 0:03:24]} a5 {[%emt 0:03:04]} 22. g5 {[%emt 0:11:32]} Nfd7 {[%emt 0:01:40]} 23. Kb1 {[%emt 0:01:07]} a4 {[%emt 0:03:44]} 24. c4 {[%emt 0:09:03][%cal Bc3c4,Bc4c5][%mdl 32]} Nxe5 {[%emt 0:06:22]} 25. Nxe5 {[%emt 0:00:36]} ({Resist} 25. Rxe5 $6 Nd7 26. Re2 (26. Rxe8+ Rxe8 27. Nd4 Nc5 $18) 26... Rxe2 27. Qxe2 Rc8 $18) 25... Qd6 {[%emt 0:01:05]} 26. f4 {[%emt 0:00:08][%cal Bf2f4,Bf4f5][%mdl 32]} Reb8 {[%emt 0:05:26]} 27. f5 {[%emt 0:05:52][%cal Rf5g6]} Re8 {[%emt 0:05:16]} 28. Nd3 {[%emt 0:00:11]} Ne4 {[%emt 0:01:08] [#]} (28... Rxe1 {was necessary.} 29. Rxe1 Qg3) 29. c5 $1 {[%emt 0:03:07]} Qxd5 {[%emt 0:04:31]} 30. Nf2 {[%emt 0:00:36][%mdl 64] Discovered Attack} Nd2+ {[%emt 0:01:29]} 31. Qxd2 {[%emt 0:00:08]} Qxf5+ {[%emt 0:01:39]} 32. Nd3 {[%emt 0:03:23]} Red8 {[%emt 0:02:26]} 33. Rf1 {[%emt 0:02:44] White is clearly winning.} Qe4 {[%emt 0:00:40]} 34. Qf4 {[%emt 0:00:42]} Qe7 {[%emt 0:02:33]} 35. Rde1 {[%emt 0:02:12]} Qf8 {[%emt 0:00:19]} 36. Ne5 {[%emt 0:00:36] Black did not feel at home in the position after the opening.   Weighted Error Value: White=0.09 (flawless) /Black=0.42} 1-0

[Event "Oceania Zonal Open 2023"]
[Site "Melbourne"]
[Date "2023.01.24"]
[Round "2.3"]
[White "Siva Sankaran, Anup Kumar"]
[Black "Sardana, Rishi"]
[Result "0-1"]
[ECO "E52"]
[WhiteElo "1846"]
[BlackElo "2459"]
[Annotator "TA"]
[PlyCount "62"]
[EventDate "2023.01.09"]
[EventType "swiss"]
[EventCountry "AUS"]
[SourceTitle "playchess.com"]
[Source "ChessBase"]
[SourceQuality "1"]
[TimeControl "5400+30"]

{[%evp 18,62,4,-14,0,-9,-27,-21,-19,-72,-49,-49,-29,-49,-5,-92,-89,-90,-87,-85,-83,-91,-83,-85,-84,-82,-84,-164,-131,-389,-397,-389,-166,-391,-388,-442,-437,-441,-425,-819,-804,-889,-885,-865,-877,-867,-850]} 1. d4 Nf6 {[%emt 0:08:03]} 2. c4 {[%emt 0:00:06]} e6 {[%emt 0:00:12]} 3. Nc3 {[%emt 0:00:08]} Bb4 {[%emt 0:00:06]} 4. Bd2 {[%emt 0:00:09]} O-O {[%emt 0:00:39]} 5. e3 {[%emt 0:00:08]} d5 {[%emt 0:00:05]} 6. Nf3 {[%emt 0:00:11]} b6 {[%emt 0:00:06]} 7. Bd3 {[%emt 0:00:13]} dxc4 {[%emt 0:05:20]} 8. Bxc4 {[%emt 0:00:11]} Bb7 {[%emt 0:00:08]} 9. O-O {[%emt 0:00:51]} Nbd7 {[%emt 0:00:08]} 10. Rc1 {[%emt 0:01:29]} a6 {[%emt 0:02:08] E52: Nimzo-Indian: Rubinstein: 4...0-0 5 Nf3 d5 6 Bd3 b6.} 11. a3 {[%emt 0:01:46]} Bd6 {[%emt 0:00:50]} 12. Re1 {[%emt 0:06:24] [#]} e5 $146 {[%emt 0:12:28][%cal Be6e5,Be5e4][%mdl 32] The position is equal.} ({Predecessor:} 12... c5 13. e4 cxd4 14. Nxd4 Qc7 15. Na2 Bxh2+ 16. Kh1 Nc5 17. f3 Rad8 18. Nb3 Nxb3 19. Bxb3 Qg3 20. Re3 Qh4 21. Qc2 Bg3+ 22. Kg1 Qh2+ 23. Kf1 Qh1+ {0-1 Polendik,T (1778)-Otspere,U (2304) EST-ch 47 email 2016}) 13. d5 {[%emt 0:16:19]} (13. b4 $11 {keeps the balance.}) 13... e4 $17 {[%emt 0:03:34]} 14. Nd4 {[%emt 0:05:37]} b5 {[%emt 0:26:47]} 15. Ba2 {[%emt 0:03:35]} Ne5 {[%emt 0:08:44]} 16. Rc2 {[%emt 0:04:35]} (16. Bb1 $11) 16... Nd3 {[%emt 0:04:54][%cal Od6h2] [#] ...Bxh2+! would be deadly.} 17. Rf1 {[%emt 0:02:35]} b4 {[%emt 0:00:37] Black has more active pieces. The white rooks are badly placed.} 18. axb4 {[%emt 0:03:57]} Nxb4 {[%emt 0:00:12]} 19. Rc1 {[%emt 0:01:41]} Nxa2 {[%emt 0:00:32]} (19... Nfxd5 $6 20. Bxd5 Bxd5 21. Nxd5 Nxd5 22. Nc6 $11) (19... Nbxd5 $6 20. Nxd5 Bxd5 21. Bxd5 Nxd5 22. Nc6 $11) 20. Nxa2 {[%emt 0:00:17]} Nxd5 {[%emt 0:04:05][%cal Bf6d5,Bd5c3,Bc3e2,Be2c1][%mdl 32]} 21. Nf5 {[%emt 0:01:46] Dodges Qh4} Be5 {[%emt 0:04:13]} 22. Qg4 {[%emt 0:03:18] Against Qg5} (22. Bc3 $17 Nxc3 23. Nxc3) 22... Qf6 {[%emt 0:02:22] Threatens to win with ...Bc8.} (22... Bxb2 23. Rb1 (23. Bc3 Bxc3 24. Nxc3 Qf6 $15) 23... Qf6 24. Rxb2 $11) 23. Qxe4 $2 {[%emt 0:04:31][%mdl 8192] [#] White does not recover from this.} (23. Ng3 $17) 23... Nc3 $1 $19 {[%emt 0:04:57][%mdl 576] Discovered Attack} 24. Qxb7 {[%emt 0:01:49]} Ne2+ $40 {[%emt 0:00:27][%mdl 192] Discovered Attack, Double Attack. White is in trouble.} ({Stronger than} 24... Nxa2 25. f4 (25. Ra1 Qxf5 26. Qb3 Rfb8 $17) 25... Bd6 26. Ra1 $15) 25. Kh1 {[%emt 0:00:55] Black must now prevent Rce1.} Nxc1 {[%emt 0:00:27]} ({And not} 25... Qxf5 26. Rc5 $11) 26. Ne7+ {[%emt 0:01:40]} Qxe7 {[%emt 0:00:08] Black is clearly winning.} 27. Rxc1 {[%emt 0:00:44]} Qf6 {[%emt 0:06:14]} 28. Nb4 {[%emt 0:02:35]} (28. Bc3 $142 Bxc3 29. Nxc3) 28... Qxf2 {[%emt 0:00:44]} 29. Bc3 {[%emt 0:02:10]} Bxc3 {[%emt 0:00:35]} 30. bxc3 {[%emt 0:00:26]} Qb2 {[%emt 0:00:33][%cal Rb2c1]} 31. Rf1 {[%emt 0:00:30]} a5 {[%emt 0:00:09] Weighted Error Value: White=0.57/Black=0.06 (flawless)} 0-1